[Event "4th Sabbiadoro-Master 2018"]
[Site "Lignano Sabbiadoro"]
[Date "2018.08.05"]
[Round "9.7"]
[White "Favilli, Edoardo"]
[Black "Medici, Simone"]
[Result "1-0"]
[ECO "C42"]
[WhiteElo "2116"]
[BlackElo "2286"]
[Annotator "NA"]
[PlyCount "125"]
[EventDate "2018.07.29"]
[EventType "swiss"]
[EventCountry "ITA"]
[SourceTitle "playchess.com"]
[Source "ChessBase"]
[SourceQuality "1"]
[TimeControl "5400+30"]

1. e4 {[%emt 0:07:30]} e5 {[%emt 0:00:30]} 2. Nf3 {[%emt 0:00:30]} Nf6 {[%emt 0:00:30]} 3. Nxe5 {[%emt 0:00:30]} d6 {[%emt 0:00:00]} 4. Nf3 {[%emt 0:00:00]} Nxe4 {[%emt 0:00:00]} 5. Nc3 {[%emt 0:00:00]} Nf6 {[%emt 0:01:30]} 6. d4 {[%emt 0:00:30]} d5 {[%emt 0:06:30]} 7. Bg5 {[%emt 0:04:30]} Be7 {[%emt 0:02:30]} 8. Qd2 {[%emt 0:01:30]} Ne4 {[%emt 0:05:30]} 9. Bxe7 {[%emt 0:11:30]} Qxe7 {[%emt 0:03:30]} 10. Nxe4 {[%emt 0:00:30]} dxe4 {[%emt 0:00:30]} 11. Ne5 {[%emt 0:02:30]} Nd7 {[%emt 0:11:30]} 12. Nxd7 {[%emt 0:23:30]} Bxd7 {[%emt 0:00:30]} 13. O-O-O {[%emt 0:00:30]} O-O-O {[%emt 0:02:30]} 14. Bc4 {[%emt 0:03:30]} f5 {[%emt 0:04:30]} 15. Rhe1 {[%emt 0:04:30]} Rhe8 {[%emt 0:01:30]} 16. Re3 {[%emt 0:08:30]} Qd6 {[%emt 0:09:30]} 17. g3 {[%emt 0:04:30]} Kb8 {[%emt 0:13:30]} 18. Ra3 {[%emt 0:05:37]} Bc8 {[%emt 0:07:30]} 19. Qa5 {[%emt 0:03:03]} Qb6 {[%emt 0:02:30]} 20. Qc3 {[%emt 0:00:35]} Re7 {[%emt 0:02:30]} 21. Qe3 {[%emt 0:04:21]} Red7 {[%emt 0:02:30]} 22. c3 {[%emt 0:00:16]} Qc6 {[%emt 0:06:02]} 23. Bb3 {[%emt 0:01:00]} Rd6 {[%emt 0:02:19]} 24. Ba4 {[%emt 0:07:19]} Qb6 {[%emt 0:00:50]} 25. Bb3 {[%emt 0:00:42]} a6 {[%emt 0:02:23]} 26. Ra4 {[%emt 0:00:23]} c6 {[%emt 0:03:56]} 27. Rc4 {[%emt 0:01:35]} Be6 {[%emt 0:01:01]} 28. Rb4 {[%emt 0:00:34]} Qc7 {[%emt 0:00:21]} 29. Bxe6 {[%emt 0:01:29]} Rxe6 {[%emt 0:00:01]} 30. h4 {[%emt 0:02:01]} Red6 {[%emt 0:01:42]} 31. Rc4 {[%emt 0:00:35]} Rd5 {[%emt 0:00:44]} 32. Rc5 {[%emt 0:01:27]} g6 {[%emt 0:04:30]} 33. Rxd5 {[%emt 0:00:09]} Rxd5 {[%emt 0:00:06]} 34. c4 {[%emt 0:00:17]} Rd7 {[%emt 0:00:26]} 35. b3 {[%emt 0:00:38]} Ka8 {[%emt 0:00:26]} 36. Kb2 {[%emt 0:00:17]} Qd8 {[%emt 0:00:41]} 37. Rd2 {[%emt 0:00:22]} Qh8 {[%emt 0:00:33]} 38. Qc3 {[%emt 0:00:33]} Qd8 {[%emt 0:00:31]} 39. Qe3 {[%emt 0:00:23]} Rd6 {[%emt 0:00:23]} 40. a3 {[%emt 0:00:17]} Qa5 {[%emt 0:01:15]} 41. Qc3 {[%emt 0:00:41]} Qc7 {[%emt 0:00:46]} 42. Kc2 {[%emt 0:00:37]} Qf7 {[%emt 0:01:38]} 43. Qe3 {[%emt 0:01:14]} Qf8 {[%emt 0:00:32]} 44. Kb2 {[%emt 0:00:16]} h6 {[%emt 0:00:19]} 45. d5 {[%emt 0:00:46]} Qf6+ {[%emt 0:00:40]} 46. Qc3 {[%emt 0:00:12]} Qd8 {[%emt 0:00:42]} 47. Qe5 {[%emt 0:00:08]} cxd5 {[%emt 0:00:40]} 48. Rxd5 {[%emt 0:00:07]} Qf6 {[%emt 0:00:31]} 49. Qxf6 {[%emt 0:00:46]} Rxf6 {[%emt 0:00:01]} 50. Kc3 {[%emt 0:00:22]} Kb8 {[%emt 0:00:17]} 51. Kd4 {[%emt 0:00:06]} h5 {[%emt 0:01:07]} 52. Ke5 {[%emt 0:00:15]} Rb6 {[%emt 0:00:10]} 53. b4 {[%emt 0:00:07]} Kc7 {[%emt 0:00:13]} 54. b5 {[%emt 0:00:58]} axb5 {[%emt 0:00:58]} 55. cxb5 {[%emt 0:00:07]} Kc8 {[%emt 0:00:42]} 56. a4 {[%emt 0:00:07]} g5 {[%emt 0:00:32]} 57. hxg5 {[%emt 0:00:18]} Rg6 {[%emt 0:00:30]} 58. Kxf5 {[%emt 0:00:10]} Rg8 {[%emt 0:00:09]} 59. Kxe4 {[%emt 0:00:12]} Rh8 {[%emt 0:00:40]} 60. g6 {[%emt 0:00:19]} h4 {[%emt 0:00:29]} 61. gxh4 {[%emt 0:00:08]} Rxh4+ {[%emt 0:00:03]} 62. f4 {[%emt 0:00:08]} b6 {[%emt 0:00:29]} 63. g7 {[%emt 0:00:06]} 1-0

[Event "4th Sabbiadoro-Master 2018"]
[Site "Lignano Sabbiadoro"]
[Date "2018.08.05"]
[Round "9.8"]
[White "Olivetti, Davide"]
[Black "Ventura, Salvatore"]
[Result "0-1"]
[ECO "B30"]
[WhiteElo "2234"]
[BlackElo "2185"]
[Annotator "NA"]
[PlyCount "56"]
[EventDate "2018.07.29"]
[EventType "swiss"]
[EventCountry "ITA"]
[SourceTitle "playchess.com"]
[Source "ChessBase"]
[SourceQuality "1"]
[TimeControl "5400+30"]

1. e4 {[%emt 0:03:30]} c5 {[%emt 0:00:30]} 2. Nf3 {[%emt 0:00:00]} Nc6 {[%emt 0:00:30]} 3. Nc3 {[%emt 0:00:00]} Qb6 {[%emt 0:00:00]} 4. g3 {[%emt 0:02:30]} e6 {[%emt 0:01:00]} 5. Bg2 {[%emt 0:01:30]} g6 {[%emt 0:03:30]} 6. O-O {[%emt 0:03:30]} Bg7 {[%emt 0:00:30]} 7. b3 {[%emt 0:05:30]} Nge7 {[%emt 0:02:30]} 8. Bb2 {[%emt 0:00:30]} Nd4 {[%emt 0:02:30]} 9. e5 {[%emt 0:05:30]} Nec6 {[%emt 0:14:30]} 10. Ne4 {[%emt 0:16:30]} Nxe5 {[%emt 0:04:30]} 11. Nxd4 {[%emt 0:01:30]} cxd4 {[%emt 0:01:30]} 12. Ba3 {[%emt 0:00:30]} Bf8 {[%emt 0:11:30]} 13. Nf6+ {[%emt 0:01:30]} Kd8 {[%emt 0:00:30]} 14. Bxf8 {[%emt 0:01:30]} Rxf8 {[%emt 0:00:00]} 15. f4 {[%emt 0:08:30]} d3+ {[%emt 0:07:00]} 16. Kh1 {[%emt 0:01:30]} dxc2 {[%emt 0:00:00]} 17. Qxc2 {[%emt 0:00:30]} Nc6 {[%emt 0:00:00]} 18. Nxh7 {[%emt 0:02:30]} Rh8 {[%emt 0:00:30]} 19. Ng5 {[%emt 0:00:30]} Ke7 {[%emt 0:03:30]} 20. d4 {[%emt 0:07:30]} d5 {[%emt 0:09:30]} 21. Rae1 {[%emt 0:05:30]} Nxd4 {[%emt 0:13:30]} 22. Qb2 {[%emt 0:03:30]} f6 {[%emt 0:01:30]} 23. Qa3+ {[%emt 0:03:30]} Ke8 {[%emt 0:00:00]} 24. Nxe6 {[%emt 0:03:30]} Bxe6 {[%emt 0:01:00]} 25. f5 {[%emt 0:00:30]} gxf5 {[%emt 0:02:57]} 26. Bxd5 {[%emt 0:01:40]} Kf7 {[%emt 0:00:58]} 27. Bxe6+ {[%emt 0:01:14]} Nxe6 {[%emt 0:00:08]} 28. Rxf5 {[%emt 0:00:34]} Qc6+ {[%emt 0:01:50]} 0-1

[Event "4th Sabbiadoro-Master 2018"]
[Site "Lignano Sabbiadoro"]
[Date "2018.08.05"]
[Round "9.9"]
[White "Grigorian, Roudolph"]
[Black "Simonetto, Andrea"]
[Result "1/2-1/2"]
[ECO "D02"]
[WhiteElo "2154"]
[BlackElo "2173"]
[Annotator "NA"]
[PlyCount "71"]
[EventDate "2018.07.29"]
[EventType "swiss"]
[EventCountry "ITA"]
[SourceTitle "playchess.com"]
[Source "ChessBase"]
[SourceQuality "1"]
[TimeControl "5400+30"]

1. d4 {[%emt 0:00:30]} d5 {[%emt 0:00:30]} 2. Bf4 {[%emt 0:00:00]} Nf6 {[%emt 0:00:00]} 3. Nf3 {[%emt 0:00:00]} e6 {[%emt 0:00:00]} 4. e3 {[%emt 0:00:00]} Bd6 {[%emt 0:00:00]} 5. Bg3 {[%emt 0:00:00]} O-O {[%emt 0:00:00]} 6. Nbd2 {[%emt 0:00:00]} c5 {[%emt 0:00:30]} 7. c3 {[%emt 0:00:00]} b6 {[%emt 0:00:30]} 8. Bd3 {[%emt 0:00:30]} Ba6 {[%emt 0:01:30]} 9. Bxa6 {[%emt 0:01:30]} Nxa6 {[%emt 0:00:30]} 10. O-O {[%emt 0:00:30]} Nb8 {[%emt 0:03:30]} 11. Ne5 {[%emt 0:00:00]} Qc7 {[%emt 0:00:30]} 12. f4 {[%emt 0:01:00]} Nc6 {[%emt 0:00:30]} 13. Qf3 {[%emt 0:02:30]} cxd4 {[%emt 0:01:30]} 14. cxd4 {[%emt 0:01:30]} Ne7 {[%emt 0:01:30]} 15. Bh4 {[%emt 0:05:30]} Nf5 {[%emt 0:01:30]} 16. Bxf6 {[%emt 0:04:30]} gxf6 {[%emt 0:00:00]} 17. Rac1 {[%emt 0:00:30]} Qe7 {[%emt 0:02:00]} 18. Nd3 {[%emt 0:03:30]} Bb4 {[%emt 0:02:30]} 19. Nb1 {[%emt 0:05:30]} Rfc8 {[%emt 0:03:30]} 20. g4 {[%emt 0:01:30]} Ng7 {[%emt 0:01:30]} 21. a3 {[%emt 0:05:30]} Bd6 {[%emt 0:00:30]} 22. Nc3 {[%emt 0:00:00]} Bxa3 {[%emt 0:06:30]} 23. bxa3 {[%emt 0:24:00]} Qxa3 {[%emt 0:00:30]} 24. f5 {[%emt 0:00:00]} Rxc3 {[%emt 0:01:30]} 25. fxe6 {[%emt 0:01:00]} fxe6 {[%emt 0:05:30]} 26. Rxc3 {[%emt 0:06:30]} Qxc3 {[%emt 0:00:00]} 27. Qxf6 {[%emt 0:00:30]} h6 {[%emt 0:01:00]} 28. Qf7+ {[%emt 0:11:30]} Kh7 {[%emt 0:01:30]} 29. Ne5 {[%emt 0:02:30]} Qxe3+ {[%emt 0:00:30]} 30. Kg2 {[%emt 0:00:30]} Qe4+ {[%emt 0:00:30]} 31. Kg3 {[%emt 0:01:30]} Rc8 {[%emt 0:06:30]} 32. Rf3 {[%emt 0:08:03]} Qe1+ {[%emt 0:03:30]} 33. Kh3 {[%emt 0:01:40]} Rc3 {[%emt 0:00:30]} 34. Qg6+ {[%emt 0:01:52]} Kg8 {[%emt 0:00:30]} 35. Qf7+ {[%emt 0:04:00]} Kh7 {[%emt 0:00:00]} 36. Qg6+ {[%emt 0:02:43]} 1/2-1/2

[Event "4th Sabbiadoro-Master 2018"]
[Site "Lignano Sabbiadoro"]
[Date "2018.08.05"]
[Round "9.10"]
[White "Prete, Alessandro"]
[Black "Mufic, Goran"]
[Result "1/2-1/2"]
[ECO "B34"]
[WhiteElo "2032"]
[BlackElo "2299"]
[Annotator "NA"]
[PlyCount "91"]
[EventDate "2018.07.29"]
[EventType "swiss"]
[EventCountry "ITA"]
[SourceTitle "playchess.com"]
[Source "ChessBase"]
[SourceQuality "1"]
[TimeControl "5400+30"]

1. e4 {[%emt 0:02:30]} c5 {[%emt 0:00:30]} 2. Nf3 {[%emt 0:00:30]} Nc6 {[%emt 0:00:00]} 3. Nc3 {[%emt 0:00:30]} g6 {[%emt 0:00:00]} 4. d4 {[%emt 0:00:30]} cxd4 {[%emt 0:00:00]} 5. Nxd4 {[%emt 0:00:30]} Bg7 {[%emt 0:00:00]} 6. Nb3 {[%emt 0:00:30]} Bxc3+ {[%emt 0:00:30]} 7. bxc3 {[%emt 0:00:00]} Nf6 {[%emt 0:00:00]} 8. Bd3 {[%emt 0:00:00]} d5 {[%emt 0:00:00]} 9. exd5 {[%emt 0:01:30]} Qxd5 {[%emt 0:00:00]} 10. O-O {[%emt 0:01:30]} Bg4 {[%emt 0:00:00]} 11. f3 {[%emt 0:02:30]} Bf5 {[%emt 0:00:00]} 12. c4 {[%emt 0:00:30]} Qd7 {[%emt 0:00:00]} 13. Bb2 {[%emt 0:00:30]} O-O {[%emt 0:03:30]} 14. Qe2 {[%emt 0:04:30]} Rad8 {[%emt 0:04:30]} 15. Rad1 {[%emt 0:02:30]} Rfe8 {[%emt 0:01:30]} 16. Be4 {[%emt 0:10:30]} Qc8 {[%emt 0:05:30]} 17. Bd5 {[%emt 0:03:30]} Nb4 {[%emt 0:03:30]} 18. Rd2 {[%emt 0:18:30]} Nbxd5 {[%emt 0:03:30]} 19. cxd5 {[%emt 0:02:30]} Rxd5 {[%emt 0:06:30]} 20. Rxd5 {[%emt 0:02:30]} Nxd5 {[%emt 0:00:00]} 21. Qe5 {[%emt 0:01:30]} Nf6 {[%emt 0:00:00]} 22. g4 {[%emt 0:00:30]} Bxg4 {[%emt 0:07:30]} 23. fxg4 {[%emt 0:00:30]} Qxg4+ {[%emt 0:00:00]} 24. Kh1 {[%emt 0:01:30]} Qe4+ {[%emt 0:00:00]} 25. Qxe4 {[%emt 0:06:30]} Nxe4 {[%emt 0:00:30]} 26. Kg2 {[%emt 0:05:30]} Rc8 {[%emt 0:00:30]} 27. Rc1 {[%emt 0:02:30]} Rc4 {[%emt 0:00:30]} 28. Kf3 {[%emt 0:00:30]} f5 {[%emt 0:03:30]} 29. Ke3 {[%emt 0:04:30]} Kf7 {[%emt 0:01:30]} 30. Nd2 {[%emt 0:06:23]} Rb4 {[%emt 0:02:30]} 31. Nxe4 {[%emt 0:00:40]} Rxb2 {[%emt 0:00:30]} 32. Nc3 {[%emt 0:00:05]} b5 {[%emt 0:00:00]} 33. a3 {[%emt 0:01:10]} a5 {[%emt 0:00:00]} 34. Kd3 {[%emt 0:01:11]} b4 {[%emt 0:04:30]} 35. axb4 {[%emt 0:00:15]} Rxb4 {[%emt 0:00:00]} 36. Nd5 {[%emt 0:02:28]} Rh4 {[%emt 0:03:00]} 37. c4 {[%emt 0:00:35]} e5 {[%emt 0:01:30]} 38. Nb6 {[%emt 0:00:41]} Rh3+ {[%emt 0:00:30]} 39. Kc2 {[%emt 0:03:56]} Ke7 {[%emt 0:05:30]} 40. c5 {[%emt 0:00:59]} Kd8 {[%emt 0:00:30]} 41. c6 {[%emt 0:00:44]} Kc7 {[%emt 0:00:30]} 42. Kb2 {[%emt 0:01:55]} Rd3 {[%emt 0:11:30]} 43. Na8+ {[%emt 0:00:18]} Kc8 {[%emt 0:00:00]} 44. Nb6+ {[%emt 0:00:07]} Kc7 {[%emt 0:00:00]} 45. Na8+ {[%emt 0:00:26]} Kc8 {[%emt 0:00:30]} 46. Nb6+ {[%emt 0:00:27]} 1/2-1/2